bitfinex-derivatives/quotes_ETHF0:USTF0_20260118
["timestamp","ask_amount","ask_price","bid_price","bid_amount"]
[1768700821528,0.29205031,3302.4,3301.5,0.16710403]
[1768700821726,1.7833806,3303.1,3301.9,0.16710403]
[1768700821937,1.35420953,3303.0,3301.9,0.16710403]
[1768700822234,1.35420953,3302.9,3301.9,0.16710403]
[1768700822436,1.35420953,3302.8,3301.9,0.16710403]
[1768700822639,1.35420953,3302.7,3301.9,0.16710403]
[1768700822836,1.35420953,3302.6,3301.9,0.16710403]
[1768700823033,0.29205117,3302.5,3301.9,0.16710403]
[1768700823334,0.29206761,3302.4,3301.9,0.16710403]
[1768700823639,1.87842,3303.1,3301.9,0.16710403]
[1768700823936,1.35431157,3303.0,3301.9,0.16710403]
[1768700824128,1.35431157,3302.9,3301.9,0.16710403]
[1768700824327,1.35431157,3302.8,3301.9,0.16710403]
[1768700824534,1.35431157,3302.7,3301.9,0.16710403]
[1768700824737,1.35431157,3302.6,3301.9,0.16710403]
[1768700825035,0.29207293,3302.5,3301.9,0.16710403]
[1768700825234,0.29207293,3302.4,3301.9,0.16710403]
[1768700825422,3.5103806,3303.1,3301.9,0.16710403]
[1768700825619,1.35442997,3303.0,3301.9,0.16710403]
[1768700825831,1.35442997,3302.9,3301.9,0.16710403]
[1768700826031,1.35442997,3302.8,3301.9,0.16710403]
[1768700826331,1.35442997,3302.7,3301.9,0.16710403]
[1768700826533,1.35442997,3302.6,3301.9,0.16710403]
[1768700826730,0.29209845,3302.5,3301.9,0.16710403]
[1768700826927,0.29209845,3302.4,3301.9,0.16710403]
[1768700827227,3.5103806,3303.1,3301.9,0.16710403]
[1768700827427,1.35457073,3303.0,3301.9,0.16710403]
[1768700827632,1.35457073,3302.9,3301.9,0.16710403]
[1768700827835,1.35457073,3302.8,3301.9,0.16710403]
[1768700828026,1.35457073,3302.7,3301.9,0.16710403]
[1768700828231,0.29211745,3302.6,3301.9,0.16710403]
[1768700828436,1.6319606,3303.3,3301.9,0.16710403]
[1768700828753,3.07764908,3303.2,3301.9,0.16710403]
[1768700828932,1.35064908,3303.1,3301.9,0.16710403]
[1768700829129,1.35064908,3303.0,3301.9,0.16710403]
[1768700829328,1.35064908,3302.9,3301.9,0.16710403]
[1768700829527,0.29216932,3302.8,3301.9,0.16710403]
[1768700829727,0.29216932,3302.7,3301.9,0.16710403]
[1768700829940,1.727,3303.3,3301.9,0.16710403]
[1768700830239,1.35061168,3303.2,3301.9,0.16710403]
[1768700830426,1.35061168,3303.1,3301.9,0.16710403]
[1768700830628,1.35061168,3303.0,3301.9,0.16710403]
[1768700830839,1.35061168,3302.9,3301.9,0.16710403]
[1768700831139,0.29215796,3302.8,3301.9,0.16710403]
[1768700831329,0.29212583,3302.7,3301.9,0.16710403]
[1768700831529,1.727,3303.3,3301.9,0.16710403]
[1768700831730,1.35046588,3303.2,3301.9,0.16710403]
[1768700831943,1.35046588,3303.1,3301.9,0.16710403]
[1768700832139,1.35046588,3303.0,3301.9,0.16710403]
[1768700832338,0.29212651,3302.9,3301.9,0.16710403]
[1768700832533,0.29212651,3302.8,3301.9,0.16710403]
[1768700832736,1.73079941,3303.5,3301.9,0.16710403]
[1768700832937,1.35046803,3303.4,3301.9,0.16710403]
[1768700833138,1.35046803,3303.3,3301.9,0.16710403]
[1768700833437,1.35046803,3303.2,3301.9,0.16710403]
[1768700833742,1.35046803,3303.1,3301.9,0.16710403]
[1768700833941,1.35046803,3303.0,3301.9,0.16710403]
[1768700834147,0.29212518,3302.9,3301.9,0.16710403]
[1768700834346,0.29212518,3302.8,3301.9,0.16710403]
[1768700834546,3.36276001,3303.5,3301.9,0.16710403]
[1768700834746,1.3500633,3303.4,3301.9,0.16710403]
[1768700834947,1.3500633,3303.3,3301.9,0.16710403]
[1768700835134,1.3500633,3303.2,3301.9,0.16710403]
[1768700835340,1.3500633,3303.1,3301.9,0.16710403]
[1768700835635,1.3500633,3303.0,3301.9,0.16710403]
[1768700835844,0.2920374,3302.9,3301.9,0.16710403]
[1768700836040,0.2920374,3302.8,3301.9,0.16710403]
[1768700836252,1.73079941,3303.5,3301.9,0.16710403]
[1768700836436,1.34974228,3303.4,3301.9,0.16710403]
[1768700836642,1.34974228,3303.3,3301.9,0.16710403]
[1768700836948,1.34974228,3303.2,3301.9,0.16710403]
[1768700837252,1.34974228,3303.1,3301.9,0.16710403]
[1768700837543,1.34974228,3303.0,3301.9,0.16710403]
[1768700837750,0.29196947,3302.9,3301.9,0.16710403]
[1768700837949,1.73079941,3303.5,3301.9,0.16710403]
[1768700838145,1.34911861,3303.4,3301.9,0.16710403]
[1768700838447,1.34911861,3303.3,3301.9,0.16710403]
[1768700838647,1.34911861,3303.2,3301.9,0.16710403]
[1768700838847,1.34911861,3303.1,3301.9,0.16710403]
[1768700839149,0.2918322,3303.0,3301.9,0.16710403]
[1768700839451,0.2918322,3302.9,3301.9,0.16710403]
[1768700839749,1.73079941,3303.5,3301.9,0.16710403]
[1768700839947,1.34901293,3303.4,3301.9,0.16710403]
[1768700840147,1.34901293,3303.3,3301.9,0.16710403]
[1768700840348,1.34901293,3303.2,3301.9,0.16710403]
[1768700840546,1.34901293,3303.1,3301.9,0.16710403]
[1768700840747,0.29180932,3303.0,3301.9,0.16710403]
[1768700840946,0.29180932,3302.9,3301.9,0.16710403]
[1768700841249,1.73079941,3303.5,3301.9,0.16710403]
[1768700841446,1.34882379,3303.4,3301.9,0.16710403]
[1768700841754,1.34882379,3303.3,3301.9,0.16710403]
[1768700842050,1.73079941,3303.5,3301.9,0.16710403]
[1768700842051,1.34882379,3303.2,3301.9,0.16710403]
[1768700842251,1.34882379,3303.1,3301.9,0.16710403]
[1768700842456,0.29176908,3303.0,3301.9,0.16710403]
[1768700842751,0.29176908,3302.9,3301.9,0.16710403]
[1768700842951,1.73079941,3303.5,3301.9,0.16710403]
[1768700843154,1.34865137,3303.4,3301.9,0.16710403]
[1768700843354,1.34865137,3303.3,3301.9,0.16710403]
[1768700843555,1.34865137,3303.2,3301.9,0.16710403]
[1768700843767,0.29173125,3303.1,3301.9,0.16710403]
[1768700844052,1.73079941,3303.5,3301.9,0.16710403]
[1768700844250,1.34853843,3303.4,3301.9,0.16710403]
[1768700844449,1.34853843,3303.3,3301.9,0.16710403]
[1768700844650,1.34853843,3303.2,3301.9,0.16710403]
[1768700844955,0.29171064,3303.1,3301.9,0.16710403]
[1768700845258,1.73079941,3303.5,3301.9,0.16710403]
[1768700845557,1.34849221,3303.4,3301.9,0.16710403]
[1768700845748,1.34849221,3303.3,3301.9,0.16710403]
[1768700845948,1.34849221,3303.2,3301.9,0.16710403]
[1768700846247,0.29169695,3303.1,3301.9,0.16710403]
[1768700846547,1.73079941,3303.5,3301.9,0.16710403]
[1768700846747,1.34851537,3303.4,3301.9,0.16710403]
[1768700846947,1.34851537,3303.3,3301.9,0.16710403]
[1768700847152,1.34851537,3303.2,3301.9,0.16710403]
[1768700847355,0.2917015,3303.1,3301.9,0.16710403]
[1768700847551,1.73079941,3303.5,3301.9,0.16710403]
[1768700847751,1.34856114,3303.4,3301.9,0.16710403]
[1768700847955,1.34856114,3303.3,3301.9,0.16710403]
[1768700848149,1.34856114,3303.2,3301.9,0.16710403]
[1768700848350,0.29171162,3303.1,3301.9,0.16710403]
[1768700848548,1.73079941,3303.5,3301.9,0.16710403]
[1768700848549,0.29171162,3303.0,3301.9,0.16710403]
[1768700848748,0.00379941,3303.5,3301.9,0.16710403]
[1768700849055,1.34863564,3303.4,3301.9,0.16710403]
[1768700849257,1.34863564,3303.3,3301.9,0.16710403]
[1768700849456,1.34863564,3303.2,3301.9,0.16710403]
[1768700849653,0.29172831,3303.1,3301.9,0.16710403]
[1768700849850,0.29172831,3303.0,3301.9,0.16710403]
[1768700850053,0.00379941,3303.5,3301.9,0.16710403]
[1768700850345,1.34872075,3303.4,3301.9,0.16710403]
[1768700850549,1.34872075,3303.3,3301.9,0.16710403]
[1768700850764,1.34872075,3303.2,3301.9,0.16710403]
[1768700850956,0.29174612,3303.1,3301.9,0.16710403]
[1768700851153,0.29174612,3303.0,3301.9,0.16710403]
[1768700851352,0.00379941,3303.5,3301.9,0.16710403]
[1768700851555,1.34885225,3303.4,3301.9,0.16710403]
[1768700851763,1.34885225,3303.3,3301.9,0.16710403]
[1768700852060,1.34885225,3303.2,3301.9,0.16710403]
[1768700852259,0.29177449,3303.1,3301.9,0.16710403]
[1768700852460,0.29177449,3303.0,3301.9,0.16710403]
[1768700852664,0.00379941,3303.5,3301.9,0.16710403]
[1768700852861,1.34897807,3303.4,3301.9,0.16710403]
[1768700853063,1.34897807,3303.3,3301.9,0.16710403]
[1768700853269,1.34897807,3303.2,3301.9,0.16710403]
[1768700853455,0.29180172,3303.1,3301.9,0.16710403]
[1768700853655,0.29180172,3303.0,3301.9,0.16710403]
[1768700853863,0.00379941,3303.5,3301.9,0.16710403]
[1768700854058,1.34912737,3303.4,3301.9,0.16710403]
[1768700854258,1.34912737,3303.3,3301.9,0.16710403]
[1768700854558,1.34912737,3303.2,3301.9,0.16710403]
[1768700854759,0.29183385,3303.1,3301.9,0.16710403]
[1768700855064,0.29183385,3303.0,3301.9,0.16710403]
[1768700855366,0.00379941,3303.5,3301.9,0.16710403]
[1768700855562,1.34953249,3303.4,3301.9,0.16710403]
[1768700855764,1.34953249,3303.3,3301.9,0.16710403]
[1768700856062,1.34953249,3303.2,3301.9,0.16710403]
[1768700856363,1.34953249,3303.1,3301.9,0.16710403]
[1768700856555,0.29192219,3303.0,3301.9,0.16710403]
[1768700856754,0.00379941,3303.5,3301.9,0.16710403]
[1768700856955,1.34981816,3303.4,3301.9,0.16710403]
[1768700857152,1.34981816,3303.3,3301.9,0.16710403]
[1768700857356,1.34981816,3303.2,3301.9,0.16710403]
[1768700857653,1.34981816,3303.1,3301.9,0.16710403]
[1768700857856,0.29198259,3303.0,3301.9,0.16710403]
[1768700858055,0.29198259,3303.0,3301.5,0.15149]
[1768700858056,0.29206161,3302.9,3302.2,0.16894394]
[1768700858251,0.00379941,3303.5,3302.2,0.16894394]
[1768700858454,1.345422,3303.4,3302.2,0.16894394]
[1768700858655,1.345422,3303.3,3302.2,0.16894394]
[1768700858865,1.345422,3303.2,3302.2,0.16894394]
[1768700859059,0.29213373,3303.1,3302.2,0.16894394]
[1768700859259,0.29213373,3303.0,3302.2,0.16894394]
[1768700859457,0.29213373,3302.9,3302.2,0.16894394]
[1768700859663,0.00379941,3303.5,3302.2,0.16894394]
[1768700859864,1.34551015,3303.4,3302.2,0.16894394]
[1768700860162,1.34551015,3303.3,3302.2,0.16894394]
[1768700860364,1.34551015,3303.2,3302.2,0.16894394]
[1768700860567,0.29215421,3303.1,3302.2,0.16894394]
[1768700860766,0.29215421,3303.0,3302.2,0.16894394]
[1768700860969,0.00379941,3303.5,3302.2,0.16894394]
[1768700861266,1.34557564,3303.4,3302.2,0.16894394]
[1768700861464,1.34557564,3303.3,3302.2,0.16894394]
[1768700861666,1.34557564,3303.2,3302.2,0.16894394]
[1768700861860,0.29217207,3303.1,3302.2,0.16894394]
[1768700862060,0.29217207,3303.0,3302.2,0.16894394]
[1768700862260,0.00379941,3303.5,3302.2,0.16894394]
[1768700862460,1.34576264,3303.4,3302.2,0.16894394]
[1768700862668,1.34576264,3303.3,3302.2,0.16894394]
[1768700862868,0.29221228,3303.2,3302.2,0.16894394]
[1768700863070,0.2922282,3303.1,3302.2,0.16894394]
[1768700863270,0.00379941,3303.5,3302.2,0.16894394]
[1768700863471,1.3457152,3303.4,3302.2,0.16894394]
[1768700863657,1.3457152,3303.3,3302.2,0.16894394]
[1768700863970,0.29219654,3303.2,3302.2,0.16894394]
[1768700864170,0.29219654,3303.1,3302.2,0.16894394]
[1768700864360,0.00379941,3303.5,3302.2,0.16894394]
[1768700864562,1.34560339,3303.4,3302.2,0.16894394]
[1768700864762,1.34560339,3303.3,3302.2,0.16894394]
[1768700864973,0.29216975,3303.2,3302.2,0.16894394]
[1768700865169,0.29216975,3303.1,3302.2,0.16894394]
[1768700865370,0.00379941,3303.5,3302.2,0.16894394]
[1768700865670,1.34551871,3303.4,3302.2,0.16894394]
[1768700865869,1.34551871,3303.3,3302.2,0.16894394]
[1768700866069,0.29214961,3303.2,3302.2,0.16894394]
[1768700866277,0.29214961,3303.1,3302.2,0.16894394]
[1768700866467,0.00379941,3303.5,3302.2,0.16894394]
[1768700866772,1.3454405,3303.4,3302.2,0.16894394]
[1768700866971,1.3454405,3303.3,3302.2,0.16894394]
[1768700867163,0.29213104,3303.2,3302.2,0.16894394]
[1768700867363,0.2921167,3303.1,3302.2,0.16894394]
[1768700867558,0.00379941,3303.5,3302.2,0.16894394]
[1768700867772,1.34538023,3303.4,3302.2,0.16894394]
[1768700867980,1.34538023,3303.3,3302.2,0.16894394]
[1768700868284,0.29211717,3303.2,3302.2,0.16894394]
[1768700868569,0.29211717,3303.1,3302.2,0.16894394]
[1768700868773,0.00379941,3303.5,3302.2,0.16894394]
[1768700868976,1.34532823,3303.4,3302.2,0.16894394]
[1768700869164,1.34532823,3303.3,3302.2,0.16894394]
[1768700869364,0.29210424,3303.2,3302.2,0.16894394]
[1768700869565,0.00379941,3303.5,3302.2,0.16894394]
[1768700869765,1.34527186,3303.4,3302.2,0.16894394]
[1768700869977,1.34527186,3303.3,3302.2,0.16894394]
[1768700870274,0.29209104,3303.2,3302.2,0.16894394]
[1768700870477,0.00379941,3303.5,3302.2,0.16894394]
[1768700870670,1.3452166,3303.4,3302.2,0.16894394]
[1768700870872,1.3452166,3303.3,3302.2,0.16894394]
[1768700871072,0.29207834,3303.2,3302.2,0.16894394]
[1768700871376,0.00379941,3303.5,3302.2,0.16894394]
[1768700871567,1.34518312,3303.4,3302.2,0.16894394]
[1768700871768,0.29207027,3303.3,3302.2,0.16894394]
[1768700871972,0.00379941,3303.5,3302.2,0.16894394]
[1768700872277,1.34519774,3303.4,3302.2,0.16894394]
[1768700872478,0.2920729,3303.3,3302.2,0.16894394]
[1768700872678,0.00379941,3303.5,3302.2,0.16894394]
[1768700872879,1.34513108,3303.4,3302.2,0.16894394]
[1768700873179,0.29205775,3303.3,3302.2,0.16894394]
[1768700873475,0.00379941,3303.5,3302.2,0.16894394]
[1768700873661,1.34507961,3303.4,3302.2,0.16894394]
[1768700873861,1.34507961,3303.3,3302.2,0.16894394]
[1768700874066,0.29199407,3303.2,3302.2,0.16894394]
[1768700874265,0.00379941,3303.5,3302.2,0.16894394]
[1768700874562,1.34461798,3303.4,3302.2,0.16894394]
[1768700874764,1.34461798,3303.3,3302.2,0.16894394]
[1768700874963,0.29194567,3303.2,3302.2,0.16894394]
[1768700875175,0.50989811,3304.2,3302.6,0.18615448]
[1768700875378,1.34460463,3304.1,3302.6,0.18615448]
[1768700875671,1.34460463,3304.0,3302.6,0.18615448]
[1768700875868,1.34460463,3303.9,3302.6,0.18615448]
[1768700876068,1.3369574,3303.8,3302.6,0.18615448]
[1768700876269,0.2842876,3303.7,3302.6,0.18615448]
[1768700876476,0.00241188,3303.8,3302.6,0.18615448]
[1768700876678,0.28419579,3303.7,3302.6,0.18615448]
[1768700876873,0.00241188,3303.8,3302.6,0.18615448]
[1768700877181,0.28419591,3303.7,3302.6,0.18615448]
[1768700877380,0.00241188,3303.8,3302.6,0.18615448]
[1768700878572,1.6319606,3304.8,3303.0,0.18615448]
[1768700878766,1.33594402,3304.7,3303.0,0.18615448]
[1768700878966,1.33594402,3304.6,3303.0,0.18615448]
[1768700879170,1.33594402,3304.5,3303.0,0.18615448]
[1768700879374,1.33594402,3304.4,3303.0,0.18615448]
[1768700879569,1.33594402,3304.3,3303.0,0.18905051]
[1768700879774,1.33594402,3304.2,3303.0,0.18905051]
[1768700879976,0.2840819,3304.1,3303.0,0.18905051]
[1768700880174,0.00325407,3304.4,3303.0,0.18905051]
[1768700880374,1.33536542,3304.3,3303.0,0.18905051]
[1768700880580,1.33536542,3304.2,3303.0,0.00289603]
[1768700880778,0.28395548,3304.1,3303.0,0.00289603]
[1768700880974,0.08189284,3304.4,3303.0,0.00289603]
[1768700881288,1.33507212,3304.3,3303.0,0.00289603]
[1768700881481,1.33507212,3304.2,3303.0,0.00289603]
[1768700881679,1.33507212,3304.1,3303.0,0.00289603]
[1768700881882,1.33507212,3304.0,3303.0,0.00289603]
[1768700882081,0.28389852,3303.9,3303.0,0.00289603]
[1768700882378,0.08189284,3304.4,3303.0,0.00289603]
[1768700882579,1.33460376,3304.3,3303.0,0.00289603]
[1768700882782,1.33460376,3304.2,3303.0,0.00289603]
[1768700883079,1.33460376,3304.1,3303.0,0.00289603]
[1768700883281,0.28377689,3304.0,3303.0,0.00289603]
[1768700883476,0.23325284,3304.4,3303.0,0.00289603]
[1768700883675,1.33447724,3304.3,3303.0,0.00289603]
[1768700883871,1.33447724,3304.2,3303.0,0.00289603]
[1768700884083,0.28375061,3304.1,3303.0,0.00289603]
[1768700884382,0.23325284,3304.4,3303.0,0.00289603]
[1768700884582,1.33432618,3304.3,3303.0,0.00289603]
[1768700884784,1.33432618,3304.2,3303.0,0.00289603]
[1768700885082,1.33432618,3304.1,3303.0,0.00289603]
[1768700885284,0.28371916,3304.0,3303.0,0.00289603]
[1768700885581,0.23325284,3304.4,3303.0,0.00289603]
[1768700885779,1.33426784,3304.3,3303.0,0.00289603]
[1768700885982,0.23325284,3304.4,3303.0,0.00289603]
[1768700885983,1.33426784,3304.2,3303.0,0.00289603]
[1768700886185,1.33426784,3304.1,3303.0,0.00289603]
[1768700886483,0.28370726,3304.0,3303.0,0.00289603]
[1768700886781,0.23325284,3304.4,3303.0,0.00289603]
[1768700886982,1.33424359,3304.3,3303.0,0.00289603]
[1768700887178,1.33424359,3304.2,3303.0,0.00289603]
[1768700887380,2.31281327,3304.1,3303.0,0.00289603]
[1768700887579,0.28370224,3304.0,3303.0,0.00289603]
[1768700887874,0.97856968,3304.1,3303.0,0.00289603]
[1768700888186,0.28370014,3304.0,3303.0,0.00289603]
[1768700888378,0.97856968,3304.1,3303.0,0.00289603]
[1768700888577,0.28370928,3304.0,3303.0,0.00289603]
[1768700888791,0.97856968,3304.1,3303.0,0.00289603]
[1768700888982,0.28370954,3304.0,3303.0,0.00289603]
[1768700889183,0.97856968,3304.1,3303.0,0.00289603]
[1768700889384,0.28372164,3304.0,3303.0,0.00289603]
[1768700889584,0.97856968,3304.1,3303.0,0.00289603]
[1768700889781,0.28372135,3304.0,3303.0,0.00289603]
[1768700889974,0.97856968,3304.1,3303.0,0.00289603]
[1768700890180,0.28372167,3304.0,3303.0,0.00289603]
[1768700890379,0.97856968,3304.1,3303.0,0.00289603]
[1768700890690,0.28373251,3304.0,3303.0,0.00289603]
[1768700890890,0.97856968,3304.1,3303.0,0.00289603]
[1768700891079,0.28373251,3304.0,3303.0,0.00289603]
[1768700891386,0.97856968,3304.1,3303.0,0.00289603]
[1768700891585,0.28375011,3304.0,3303.0,0.00289603]
[1768700891886,0.97856968,3304.1,3303.0,0.00289603]
[1768700892084,0.28371155,3304.0,3303.0,0.00289603]
[1768700892287,0.97856968,3304.1,3303.0,0.00289603]
[1768700892486,0.28372589,3304.0,3303.0,0.00289603]
[1768700892788,0.97856968,3304.3,3303.0,0.00289603]
[1768700892989,1.33863572,3304.2,3303.0,0.00289603]
[1768700893184,1.33863572,3304.1,3303.0,0.00289603]
[1768700893385,0.28371314,3304.0,3303.0,0.00289603]
[1768700893587,0.97856968,3304.3,3303.0,0.00289603]
[1768700893788,1.33866997,3304.2,3303.0,0.00289603]
[1768700893989,1.33866997,3304.1,3303.0,0.00289603]
[1768700894191,0.28372109,3304.0,3303.0,0.00289603]
[1768700894395,0.97856968,3304.3,3303.0,0.00289603]
[1768700894585,1.33873753,3304.2,3303.0,0.00289603]
[1768700894785,1.33873753,3304.1,3303.0,0.00289603]
[1768700894987,0.28373608,3304.0,3303.0,0.00289603]
[1768700895187,0.97856968,3304.3,3303.0,0.00289603]
[1768700895485,1.33881123,3304.2,3303.0,0.00289603]
[1768700895686,1.33881123,3304.1,3303.0,0.00289603]
[1768700895893,0.28375585,3304.0,3303.0,0.00289603]
[1768700896095,0.97856968,3304.3,3303.0,0.00289603]
[1768700896301,1.33892416,3304.2,3303.0,0.00289603]
[1768700896481,1.33892416,3304.1,3303.0,0.00289603]
[1768700896686,0.28377741,3304.0,3303.0,0.00289603]
[1768700896885,0.97856968,3304.3,3303.0,0.00289603]
[1768700897086,1.33894883,3304.2,3303.0,0.00289603]
[1768700897288,1.33894883,3304.1,3303.0,0.00289603]
[1768700897601,0.28378247,3304.0,3303.0,0.00289603]
[1768700897786,0.97856968,3304.3,3303.0,0.00289603]
[1768700897987,1.33908486,3304.2,3303.0,0.00289603]
[1768700898187,1.33908486,3304.1,3303.0,0.00289603]
[1768700898383,0.28381177,3304.0,3303.0,0.00289603]
[1768700898587,0.97856968,3304.3,3303.0,0.00289603]
[1768700898789,1.33899743,3304.2,3303.0,0.00289603]
[1768700899086,1.33899743,3304.1,3303.0,0.00289603]
[1768700899290,0.28379356,3304.0,3303.0,0.00289603]
[1768700899493,0.97856968,3304.3,3303.0,0.00289603]
[1768700899690,1.33918163,3304.2,3303.0,0.00289603]
[1768700899889,1.33918163,3304.1,3303.0,0.00289603]
[1768700900196,0.28383303,3304.0,3303.0,0.00289603]
[1768700900384,0.97856968,3304.3,3303.0,0.00289603]
[1768700900589,1.33937803,3304.2,3303.0,0.00289603]
[1768700900793,1.33937803,3304.1,3303.0,0.00289603]
[1768700901000,0.28387505,3304.0,3303.0,0.00289603]
[1768700901207,0.28392882,3303.9,3303.0,0.00289603]
[1768700901502,0.97856968,3304.3,3303.0,0.00289603]
[1768700901704,1.33966354,3304.2,3303.0,0.00289603]
[1768700902002,1.33966354,3304.1,3303.0,0.00289603]
[1768700902198,1.33966354,3304.0,3303.0,0.00289603]
[1768700902502,0.28393572,3303.9,3303.0,0.00289603]
[1768700902699,0.97856968,3304.3,3303.0,0.00289603]
[1768700902899,1.33990561,3304.2,3303.0,0.00289603]
[1768700903100,1.33990561,3304.1,3303.0,0.00289603]
[1768700903299,1.33990561,3304.0,3303.0,0.00289603]
[1768700903502,0.28399435,3303.9,3303.0,0.00289603]
[1768700903698,0.97856968,3304.3,3303.0,0.00289603]
[1768700903899,1.34019631,3304.2,3303.0,0.00289603]
[1768700904101,1.05614583,3304.1,3303.0,0.00289603]
[1768700904306,1.3401916,3304.0,3303.0,0.00289603]
[1768700904502,0.28404577,3303.9,3303.0,0.00289603]
[1768700904702,0.28404577,3303.8,3303.0,0.00289603]
[1768700905002,0.97856968,3304.3,3303.0,0.00289603]
[1768700905195,1.34064685,3304.2,3303.0,0.00289603]
[1768700905494,1.34064685,3304.1,3303.0,0.00289603]
[1768700905804,1.34064685,3304.0,3303.0,0.00289603]
[1768700906004,1.34064685,3303.9,3303.0,0.00289603]
[1768700906201,0.28414351,3303.8,3303.0,0.00289603]
[1768700906400,0.97856968,3304.3,3303.0,0.00289603]
[1768700906606,1.34104842,3304.2,3303.0,0.00289603]
[1768700906798,1.34104842,3304.1,3303.0,0.00289603]
[1768700907109,1.34104842,3304.0,3303.0,0.00289603]
[1768700907310,1.34104842,3303.9,3303.0,0.00289603]
[1768700907509,0.28422481,3303.8,3303.0,0.00289603]
[1768700907807,0.97856968,3304.3,3303.0,0.00289603]
[1768700907999,1.34114669,3304.2,3303.0,0.00289603]
[1768700908200,1.34114669,3304.1,3303.0,0.00289603]
[1768700908403,1.34114669,3304.0,3303.0,0.00289603]
[1768700908600,1.34114669,3303.9,3303.0,0.00289603]
[1768700908803,0.2842465,3303.8,3303.0,0.00289603]
[1768700909004,0.97856968,3304.3,3303.0,0.00289603]
[1768700909205,1.34122774,3304.2,3303.0,0.00289603]
[1768700909508,1.34122774,3304.1,3303.0,0.00289603]
[1768700909703,1.34122774,3304.0,3303.0,0.00289603]
[1768700909893,0.97856968,3304.3,3303.0,0.00289603]
[1768700909894,1.34122774,3303.9,3303.0,0.00289603]
[1768700910095,0.28426144,3303.8,3303.0,0.00289603]
[1768700910308,0.97856968,3304.3,3303.0,0.00289603]
[1768700910502,1.34150462,3304.2,3303.0,0.00289603]
[1768700910803,1.34150462,3304.1,3303.0,0.00289603]
[1768700911003,1.34150462,3304.0,3303.0,0.00289603]
[1768700911205,1.34150462,3303.9,3303.0,0.00289603]
[1768700911503,0.28430619,3303.8,3303.0,0.00289603]
[1768700911807,0.28430619,3303.7,3303.0,0.00289603]
[1768700912006,0.97856968,3304.3,3303.0,0.00289603]
[1768700912200,1.34154063,3304.2,3303.0,0.00289603]
[1768700912400,1.34154063,3304.1,3303.0,0.00289603]
[1768700912602,1.34154063,3304.0,3303.0,0.00289603]
[1768700912803,1.34154063,3303.9,3303.0,0.00289603]
[1768700913006,0.28434068,3303.8,3303.0,0.00289603]
[1768700913209,0.28434068,3303.7,3303.0,0.00289603]
[1768700913400,0.97856968,3304.3,3303.0,0.00289603]
[1768700913601,1.34169312,3304.2,3303.0,0.00289603]
[1768700913903,0.97856968,3304.3,3303.0,0.00289603]
[1768700913904,1.34169312,3304.1,3303.0,0.00289603]
[1768700914211,0.97856968,3303.7,3302.2,1.16193472]
[1768700914507,0.28437297,3303.6,3302.4,0.97856968]
[1768700914708,0.97856968,3303.7,3302.4,0.97856968]
[1768700914913,0.28433138,3303.6,3302.4,0.97856968]
[1768700915209,0.97856968,3303.7,3302.4,0.98164254]
[1768700915411,0.28431166,3303.6,3302.4,0.98164254]
[1768700915707,0.97856968,3303.7,3302.4,0.98164254]
[1768700915901,0.28431166,3303.6,3302.4,0.98164254]
[1768700916104,0.97856968,3303.7,3302.4,0.98164254]
[1768700916303,0.28430565,3303.6,3302.4,0.98164254]
[1768700916603,0.28426238,3303.5,3302.4,0.98164254]
[1768700916802,0.97856968,3303.7,3302.4,0.98164254]
[1768700917001,0.97856968,3303.0,3301.3,0.18336504]
[1768700917199,0.97856968,3302.5,3301.3,0.18336504]
[1768700917401,3.06603669,3302.9,3300.9,0.15152]
[1768700917402,0.97856968,3302.8,3301.5,0.18336504]
[1768700917616,0.28364522,3302.7,3301.5,0.18336504]
[1768700917812,0.97856968,3302.8,3301.5,0.18336504]
[1768700918016,0.28364861,3302.7,3301.5,0.18658782]
[1768700918203,0.97856968,3302.8,3301.5,0.18658782]
[1768700920705,1.725,3302.9,3301.5,0.18658782]
[1768700920907,1.725,3302.9,3301.6,1.16193472]
[1768700925114,1.725,3302.9,3301.6,0.18336504]
[1768700926512,0.97856968,3302.8,3301.6,0.18336504]
[1768700928911,0.97856968,3302.8,3301.5,0.00322278]
[1768700935220,1.725,3302.9,3301.5,0.00322278]
[1768700935421,0.97856968,3302.8,3301.5,0.19063676]
[1768700943029,1.725,3302.9,3301.8,0.18741398]
[1768700943227,0.28339128,3302.8,3301.8,0.18741398]
[1768700943422,1.725,3303.1,3302.1,0.18741398]
[1768700944321,1.33768737,3303.0,3302.1,0.18741398]
[1768700944527,1.725,3303.1,3302.1,0.18741398]
[1768700944727,1.33768834,3303.0,3302.1,0.18741398]
[1768700944931,1.725,3303.1,3302.1,0.18741398]
[1768700945120,1.33768829,3303.0,3302.1,0.18741398]
[1768700945317,0.28375499,3302.9,3302.1,0.18741398]
[1768700945522,1.725,3303.1,3302.1,0.18741398]
[1768700945722,1.33873752,3303.0,3302.1,0.18741398]
[1768700945922,0.28397733,3302.9,3302.1,0.18741398]
[1768700946122,1.725,3303.1,3302.1,0.18741398]
[1768700946322,1.33872237,3303.0,3302.1,0.18741398]
[1768700946532,1.33872237,3302.9,3302.1,0.18741398]
[1768700946722,1.33872237,3302.8,3302.1,0.18741398]
[1768700946922,1.725,3303.1,3302.1,0.18741398]
[1768700947123,1.34038976,3303.0,3302.1,0.18741398]
[1768700947322,1.34038976,3302.9,3302.1,0.18741398]
[1768700947523,0.28432748,3302.8,3302.1,0.18741398]
[1768700947723,1.725,3303.1,3302.1,0.18741398]
[1768700947923,1.34021712,3303.0,3302.1,0.18741398]
[1768700948119,1.34021712,3302.9,3302.1,0.18741398]
[1768700948330,0.28429118,3302.8,3302.1,0.18741398]
[1768700948530,1.725,3303.1,3302.1,0.18741398]
[1768700948840,1.34432319,3303.0,3302.1,0.18741398]
[1768700949034,1.34432319,3302.9,3302.1,0.18741398]
[1768700949224,0.28425953,3302.8,3302.1,0.18741398]
[1768700949424,1.725,3303.1,3302.1,0.18741398]
[1768700949634,1.34420496,3303.0,3302.1,0.18741398]
[1768700949833,1.34420496,3302.9,3302.1,0.18741398]
[1768700950130,0.28423449,3302.8,3302.1,0.18741398]
[1768700950332,1.725,3303.1,3302.1,0.18741398]
[1768700950531,1.34410313,3303.0,3302.1,0.18741398]
[1768700950727,1.34410313,3302.9,3302.1,0.18741398]
[1768700950933,0.2842114,3302.8,3302.1,0.18741398]
[1768700951127,1.725,3303.1,3302.1,0.18741398]
[1768700951331,1.34404077,3303.0,3302.1,0.18741398]
[1768700951530,1.34404077,3302.9,3302.1,0.18741398]
[1768700951725,0.2841983,3302.8,3302.1,0.18741398]
[1768700951925,1.725,3303.1,3302.1,0.18741398]
[1768700952131,1.34402602,3303.0,3302.1,0.18741398]
[1768700952321,1.34402602,3302.9,3302.1,0.18741398]
[1768700952526,0.28419599,3302.8,3302.1,0.18741398]
[1768700952726,1.725,3303.1,3302.1,0.18741398]
[1768700952925,1.34396744,3303.0,3302.1,0.18741398]
[1768700953129,1.34396744,3302.9,3302.1,0.18741398]
[1768700953330,0.28418366,3302.8,3302.1,0.18741398]
[1768700953530,1.725,3303.1,3302.1,0.18741398]
[1768700953832,1.34388526,3303.0,3302.1,0.18741398]
[1768700954130,1.34388526,3302.9,3302.1,0.18741398]
[1768700954327,0.28416591,3302.8,3302.1,0.18741398]